bitfinex/quotes_BTCUSD_20240908
["timestamp","ask_amount","ask_price","bid_price","bid_amount"]
[1725823311466,1.44843267,54551.0,54550.0,0.14483]
[1725823311687,1.65312089,54551.0,54550.0,0.14483]
[1725823317172,1.94642389,54551.0,54550.0,0.08163]
[1725823317389,1.94642389,54551.0,54550.0,0.00163]
[1725823317676,1.83660754,54551.0,54550.0,0.00163]
[1725823317888,1.82860754,54551.0,54550.0,0.00163]
[1725823318099,1.84260754,54551.0,54550.0,0.00163]
[1725823318530,1.82860754,54551.0,54550.0,0.00163]
[1725823318967,1.84160754,54551.0,54550.0,0.00163]
[1725823319185,1.84160754,54551.0,54550.0,0.01163]
[1725823319617,1.96587798,54551.0,54550.0,0.01163]
[1725823320974,1.97587798,54551.0,54550.0,0.01163]
[1725823321193,1.68257498,54551.0,54550.0,0.01163]
[1725823321645,1.97587798,54551.0,54550.0,0.01163]
[1725823321886,1.78089491,54551.0,54550.0,0.15253]
[1725823322106,1.65362447,54551.0,54550.0,0.01163]
[1725823322308,1.71077793,54551.0,54550.0,0.01163]
[1725823322548,2.189064,54551.0,54550.0,0.01163]
[1725823322788,1.895761,54551.0,54550.0,0.01163]
[1725823323247,1.80088913,54551.0,54550.0,0.01163]
[1725823323463,2.22390896,54551.0,54550.0,0.01163]
[1725823323686,2.05907464,54551.0,54550.0,0.01163]
[1725823323945,2.34237764,54551.0,54550.0,0.01163]
[1725823324401,2.35637764,54551.0,54550.0,0.01163]
[1725823325097,2.35637764,54551.0,54540.0,0.0621]
[1725823325098,1.320057,54543.0,54540.0,0.0621]
[1725823325338,0.440052,54539.0,54538.0,0.0788]
[1725823325567,1.73668541,54539.0,54538.0,0.0788]
[1725823325802,1.62805774,54539.0,54538.0,0.0788]
[1725823326016,1.62805774,54539.0,54536.0,0.0621]
[1725823326017,0.49288481,54539.0,54536.0,0.0621]
[1725823326235,0.49288481,54539.0,54531.0,0.1409]
[1725823326236,0.440107,54532.0,54531.0,0.1409]
[1725823326467,1.49947494,54532.0,54531.0,0.1409]
[1725823326691,1.59947494,54532.0,54531.0,0.1409]
[1725823327146,1.62822976,54532.0,54531.0,0.1409]
[1725823327400,0.293416,54530.0,54520.0,0.1409]
[1725823327622,0.82147065,54521.0,54520.0,0.1409]
[1725823327885,1.36518238,54521.0,54520.0,0.1409]
[1725823328110,1.75864638,54521.0,54520.0,0.1409]
[1725823328332,1.027183,54518.0,54517.0,0.0788]
[1725823328546,1.027183,54518.0,54514.0,0.08044]
[1725823328547,0.440245,54515.0,54514.0,0.08044]
[1725823328773,1.14427312,54515.0,54514.0,0.08044]
[1725823329003,1.73126712,54515.0,54514.0,0.08044]
[1725823329222,1.85055662,54515.0,54514.0,0.08044]
[1725823329487,1.71012894,54515.0,54514.0,0.00164]
[1725823329734,1.76132721,54515.0,54514.0,0.00164]
[1725823329977,1.87155949,54515.0,54514.0,0.00164]
[1725823330415,1.79598993,54515.0,54514.0,0.00164]
[1725823330620,1.94695343,54515.0,54514.0,0.00164]
[1725823330823,1.98538869,54515.0,54514.0,0.00164]
[1725823331299,1.94672034,54515.0,54514.0,0.00164]
[1725823331518,1.96072034,54515.0,54514.0,0.00164]
[1725823331780,1.88956688,54515.0,54514.0,0.00164]
[1725823332011,1.90356688,54515.0,54514.0,0.00164]
[1725823332440,1.79947611,54515.0,54514.0,0.00164]
[1725823333330,1.77207047,54515.0,54514.0,0.00164]
[1725823334220,1.77207047,54515.0,54514.0,0.07804]
[1725823334221,1.27147332,54515.0,54514.0,0.07804]
[1725823334428,1.3128766,54515.0,54514.0,0.07804]
[1725823334664,1.3268766,54515.0,54514.0,0.07804]
[1725823334894,1.3188766,54515.0,54514.0,0.07804]
[1725823335342,1.52739144,54515.0,54514.0,0.07804]
[1725823335562,1.51339144,54515.0,54514.0,0.07804]
[1725823336361,1.37603006,54515.0,54514.0,0.07804]
[1725823336790,1.39003006,54515.0,54514.0,0.07804]
[1725823337018,1.3328766,54515.0,54514.0,0.07804]
[1725823337354,1.3188766,54515.0,54514.0,0.07804]
[1725823337576,1.3128766,54515.0,54514.0,0.07804]
[1725823337796,1.3328766,54515.0,54514.0,0.07804]
[1725823338038,1.46616426,54515.0,54514.0,0.07804]
[1725823338716,1.3328766,54515.0,54514.0,0.07804]
[1725823338932,1.4064746,54515.0,54514.0,0.07804]
[1725823339386,1.027313,54511.0,54510.0,0.00164]
[1725823339604,1.027313,54511.0,54508.0,0.00164]
[1725823339605,0.440293,54509.0,54508.0,0.00164]
[1725823339824,1.42088,54509.0,54508.0,0.00164]
[1725823340050,1.47803346,54509.0,54508.0,0.00164]
[1725823340264,1.50680023,54509.0,54508.0,0.00164]
[1725823340480,1.87695887,54509.0,54508.0,0.00164]
[1725823340702,0.82180765,54496.0,54495.0,0.00162]
[1725823341125,0.92180765,54496.0,54495.0,0.00162]
[1725823341336,1.56615911,54496.0,54495.0,0.00162]
[1725823341549,1.59493143,54496.0,54495.0,0.00162]
[1725823341998,1.60893143,54496.0,54495.0,0.00162]
[1725823342206,1.80472064,54496.0,54495.0,0.00162]
[1725823343571,1.87872064,54496.0,54495.0,0.00162]
[1725823343801,1.89872064,54496.0,54495.0,0.00162]
[1725823344022,2.19231964,54496.0,54495.0,0.00162]
[1725823344236,1.78156718,54496.0,54495.0,0.00162]
[1725823344453,1.76756718,54496.0,54495.0,0.00162]
[1725823344667,1.86590627,54496.0,54495.0,1e-06]
[1725823344916,3.00163991,54496.0,54495.0,1e-06]
[1725823345188,3.00163991,54496.0,54483.0,9e-07]
[1725823345189,1.184224,54484.0,54483.0,9e-07]
[1725823345411,0.734252,54477.0,54472.0,0.55430836]
[1725823345642,1.48717206,54477.0,54472.0,0.55430836]
[1725823345908,1.58717206,54477.0,54476.0,0.01203237]
[1725823346151,1.61595535,54477.0,54476.0,0.00162]
[1725823346368,0.86303529,54477.0,54476.0,0.14462]
[1725823347068,0.56933429,54477.0,54476.0,0.14462]
[1725823347318,0.56933429,54477.0,54476.0,0.14662]
[1725823347549,0.56933429,54477.0,54476.0,0.14462]
[1725823347785,0.14278329,54477.0,54476.0,0.15462]
[1725823348045,0.14278329,54477.0,54476.0,0.15662]
[1725823348046,0.02878329,54477.0,54476.0,0.15662]
[1725823348283,0.18563329,54477.0,54476.0,0.1551204]
[1725823348504,0.17563329,54477.0,54476.0,0.1551204]
[1725823348974,0.146846,54479.0,54476.0,0.15462]
[1725823349195,0.146846,54479.0,54478.0,0.143]
[1725823349404,0.02877902,54484.0,54483.0,0.0717]
[1725823349653,0.02877902,54484.0,54483.0,0.153]
[1725823349876,0.12877902,54484.0,54483.0,0.15848416]
[1725823350092,0.27561102,54484.0,54483.0,0.15848416]
[1725823350327,0.56927502,54484.0,54483.0,0.15348416]
[1725823350553,0.56927502,54484.0,54483.0,0.15048416]
[1725823350554,0.86293902,54484.0,54483.0,0.15048416]
[1725823350761,0.86293902,54484.0,54483.0,0.14]
[1725823351182,0.86393902,54484.0,54483.0,0.15]
[1725823351394,0.86293902,54484.0,54483.0,0.15]
[1725823351818,0.87693902,54484.0,54483.0,0.15]
[1725823353168,0.86293902,54484.0,54483.0,0.15]
[1725823353423,0.86993902,54484.0,54483.0,0.15]
[1725823354099,0.84116,54484.0,54483.0,0.15]
[1725823354511,0.86993726,54484.0,54483.0,0.15]
[1725823355620,0.94356326,54484.0,54483.0,0.15]
[1725823356766,0.93656326,54484.0,54483.0,0.152]
[1725823356977,0.93956326,54484.0,54483.0,0.152]
[1725823357442,0.93956326,54484.0,54483.0,0.153632]
[1725823357655,0.94037926,54484.0,54483.0,0.153632]
[1725823357863,0.93737926,54484.0,54483.0,0.153632]
[1725823358077,0.94037926,54484.0,54483.0,0.153632]
[1725823360910,1.06378199,54484.0,54483.0,0.148632]
[1725823361148,0.94037926,54484.0,54483.0,0.148632]
[1725823362612,0.93737926,54484.0,54483.0,0.148632]
[1725823363080,1.23104326,54484.0,54483.0,0.148632]
[1725823363314,1.23104326,54484.0,54483.0,0.146632]
[1725823363315,1.13504326,54484.0,54483.0,0.146632]
[1725823364078,1.13104326,54484.0,54483.0,0.146632]
[1725823364315,1.24454759,54484.0,54483.0,0.146632]
[1725823364543,1.24854759,54484.0,54483.0,0.146632]
[1725823365509,1.13504326,54484.0,54483.0,0.146632]
[1725823365750,1.13104326,54484.0,54483.0,0.146632]
[1725823365987,1.13304326,54484.0,54483.0,0.146632]
[1725823366257,1.13104326,54484.0,54483.0,0.146632]
[1725823366979,1.13204326,54484.0,54483.0,0.146632]
[1725823367672,1.13104326,54484.0,54483.0,0.146632]
[1725823368844,0.83737926,54484.0,54483.0,0.146632]
[1725823369183,0.83837926,54484.0,54483.0,0.146632]
[1725823369279,0.83737926,54484.0,54483.0,0.148632]
[1725823374684,0.82836786,54484.0,54483.0,0.148632]
[1725823375523,1.12203186,54484.0,54483.0,0.146632]
[1725823377367,1.22203186,54484.0,54483.0,0.146632]
[1725823377813,1.22203186,54484.0,54483.0,0.148632]
[1725823383361,1.27671157,54484.0,54483.0,0.148632]
[1725823384243,1.27671157,54484.0,54483.0,0.146632]
[1725823384244,1.30405143,54484.0,54483.0,0.146632]
[1725823384680,1.31382887,54484.0,54483.0,0.146632]
[1725823384893,1.45052816,54484.0,54483.0,0.146632]
[1725823385319,1.31382887,54484.0,54483.0,0.146632]
[1725823390097,1.46161567,54484.0,54483.0,0.146632]
[1725823390332,1.31382887,54484.0,54483.0,0.146632]
[1725823391479,1.31482887,54484.0,54483.0,0.146632]
[1725823393211,1.47886802,54484.0,54483.0,0.146632]
[1725823394296,1.47886802,54484.0,54483.0,0.148632]
[1725823394517,1.48300825,54484.0,54483.0,0.148632]
[1725823395133,1.48300825,54484.0,54483.0,0.146632]
[1725823399217,1.48870943,54484.0,54483.0,0.146632]
[1725823399435,1.22303186,54484.0,54483.0,0.146632]
[1725823399668,1.48626251,54484.0,54483.0,0.146632]
[1725823400622,1.48526251,54484.0,54483.0,0.146632]
[1725823401085,1.48926251,54484.0,54483.0,0.146632]
[1725823401794,1.48926251,54484.0,54483.0,0.148632]
[1725823402261,1.48926251,54484.0,54483.0,0.146632]
[1725823405870,1.78292651,54484.0,54483.0,0.011632]
[1725823413875,1.77932912,54484.0,54483.0,0.011632]
[1725823414782,1.77532912,54484.0,54483.0,0.011632]
[1725823415005,1.78332912,54484.0,54483.0,0.011632]
[1725823415469,1.77532912,54484.0,54483.0,0.011632]
[1725823416757,1.78132912,54484.0,54483.0,0.011632]
[1725823428304,1.75561718,54484.0,54483.0,0.011632]
[1725823428555,1.78362429,54484.0,54483.0,0.011632]
[1725823429700,1.77762429,54484.0,54483.0,0.011632]
[1725823429932,1.78562429,54484.0,54483.0,0.011632]
[1725823430181,1.77762429,54484.0,54483.0,0.011632]
[1725823430643,1.78462429,54484.0,54483.0,0.011632]
[1725823432962,1.78462429,54484.0,54483.0,0.074532]
[1725823433586,1.78462429,54484.0,54483.0,0.011632]
[1725823437400,1.96960736,54484.0,54483.0,0.011632]
[1725823438085,1.78462429,54484.0,54483.0,0.011632]
[1725823444023,1.65392458,54484.0,54483.0,0.011632]
[1725823454006,1.82673611,54484.0,54483.0,0.011632]
[1725823458150,1.82769382,54484.0,54483.0,0.011632]
[1725823459187,1.40147998,54484.0,54483.0,0.011632]
[1725823459423,1.54831198,54484.0,54483.0,0.011632]
[1725823459640,1.5247223,54484.0,54483.0,0.011632]
[1725823462683,1.55350168,54484.0,54483.0,0.011632]
[1725823463337,1.55499102,54484.0,54483.0,0.011632]
[1725823466512,1.64325663,54484.0,54483.0,0.011632]
[1725823466956,1.80857187,54484.0,54483.0,0.011632]
[1725823467153,1.64325663,54484.0,54483.0,0.011632]
[1725823469302,1.99984975,54484.0,54483.0,0.011632]
[1725823471016,1.81486668,54484.0,54483.0,0.011632]
[1725823471942,2.00084632,54484.0,54483.0,0.011632]
[1725823472170,1.81486668,54484.0,54483.0,0.011632]
[1725823473243,2.00084632,54484.0,54483.0,0.011632]
[1725823475401,2.07447732,54484.0,54483.0,0.011632]
[1725823477804,2.25946039,54484.0,54483.0,0.011632]
[1725823479836,2.07447732,54484.0,54483.0,0.011632]
[1725823481861,1.80023207,54484.0,54483.0,0.087032]
[1725823482071,1.80023207,54484.0,54483.0,0.153632]
[1725823484305,1.79323207,54484.0,54483.0,0.153632]
[1725823484560,1.80423207,54484.0,54483.0,0.153632]
[1725823485115,1.79323207,54484.0,54483.0,0.153632]
[1725823485320,1.80223207,54484.0,54483.0,0.153632]
[1725823487044,1.42866499,54484.0,54483.0,0.153632]
[1725823488063,1.57198856,54484.0,54483.0,0.153632]
[1725823488475,1.57032102,54484.0,54483.0,0.153632]
[1725823488912,1.39865029,54484.0,54483.0,0.153632]
[1725823491824,1.29865029,54484.0,54483.0,0.1744952]
[1725823492082,1.13332792,54484.0,54483.0,0.1744952]
[1725823492281,1.27109641,54484.0,54483.0,0.1744952]
[1725823493158,1.27109641,54484.0,54483.0,0.158632]
[1725823493596,1.13332792,54484.0,54483.0,0.158632]
[1725823494031,1.24963549,54484.0,54483.0,0.158632]
[1725823494242,1.24063549,54484.0,54483.0,0.158632]
[1725823494456,1.24061225,54484.0,54483.0,0.158632]
[1725823496771,0.94694825,54484.0,54483.0,0.158632]
[1725823496996,0.94694825,54484.0,54483.0,0.1744952]
[1725823496997,0.20271585,54484.0,54483.0,0.1744952]
[1725823497271,0.000816,54484.0,54483.0,0.1744952]
[1725823497498,0.000816,54484.0,54483.0,0.19722587]
[1725823498455,0.001816,54484.0,54483.0,0.19722587]
[1725823498645,0.148648,54484.0,54483.0,0.19355573]
[1725823501953,0.001816,54484.0,54483.0,0.34038973]
[1725823502243,0.148648,54484.0,54483.0,0.19355573]
[1725823502707,0.001816,54484.0,54483.0,0.19355573]
[1725823502947,0.001816,54484.0,54483.0,0.19555573]
[1725823503189,0.000816,54484.0,54483.0,0.19555573]
[1725823503427,0.001816,54484.0,54483.0,0.19555573]
[1725823504593,0.001816,54484.0,54483.0,0.92972773]
[1725823504594,0.000816,54484.0,54483.0,0.92972773]
[1725823505053,0.001816,54484.0,54483.0,0.92972773]
[1725823505501,0.02877519,54492.0,54491.0,0.1547]
[1725823505736,0.293571,54502.0,54491.0,0.1547]
[1725823505737,0.440326,54505.0,54504.0,0.005]
[1725823505968,0.46909597,54505.0,54504.0,0.1527]
[1725823506243,0.4953596,54505.0,54504.0,0.17263806]
[1725823506474,0.4953596,54505.0,54504.0,0.17063806]
[1725823506475,0.84518922,54505.0,54504.0,0.17063806]
[1725823506703,0.7889106,54505.0,54504.0,0.1537]
[1725823507396,0.86014063,54505.0,54504.0,0.1537]
[1725823507865,0.86014063,54505.0,54504.0,0.1527]
[1725823509036,0.86014063,54505.0,54504.0,0.1537]
[1725823509288,0.86095563,54505.0,54504.0,0.1537]
[1725823509758,0.86095563,54505.0,54504.0,0.1507]
[1725823510055,0.86095563,54505.0,54504.0,0.004]
[1725823510235,1.15450663,54505.0,54504.0,0.004]
[1725823510475,1.15450663,54505.0,54504.0,0.001]
[1725823510719,1.18327427,54505.0,54504.0,0.001]
[1725823510982,1.40815486,54505.0,54504.0,0.001]
[1725823511221,1.86040208,54505.0,54504.0,0.001]
[1725823511464,1.77800586,54505.0,54504.0,0.001]
[1725823511700,1.027596,54496.0,54495.0,0.003]
[1725823511942,1.027596,54496.0,54495.0,0.005]
[1725823512190,1.027596,54496.0,54495.0,0.02404473]
[1725823512427,1.05636701,54496.0,54495.0,0.02404473]
[1725823512911,1.05636701,54496.0,54495.0,0.005]
[1725823513146,1.05936701,54496.0,54495.0,0.005]
[1725823513386,1.05936701,54496.0,54495.0,0.003]
[1725823514193,1.05636701,54496.0,54495.0,0.01827]
[1725823514422,0.46916901,54496.0,54495.0,0.1423]
[1725823514664,0.47016901,54496.0,54495.0,0.1423]
[1725823514880,0.46916901,54496.0,54495.0,0.1423]
[1725823515097,0.76276801,54496.0,54495.0,0.1423]
[1725823515314,0.47016901,54496.0,54495.0,0.1443]
[1725823515784,0.47116901,54496.0,54495.0,0.16534585]
[1725823516050,1.05636701,54496.0,54495.0,0.02204585]
[1725823516286,0.76276801,54496.0,54495.0,0.02204585]
[1725823516538,0.76276801,54496.0,54495.0,0.003]
[1725823516782,1.05636701,54496.0,54495.0,0.003]
[1725823518488,1.05736701,54496.0,54495.0,0.004]
[1725823518920,0.76276801,54496.0,54495.0,0.003]
[1725823519134,0.76576801,54496.0,54495.0,0.003]
[1725823519353,1.05936701,54496.0,54495.0,0.003]
[1725823519589,1.05636701,54496.0,54495.0,0.003]
[1725823519838,1.05736701,54496.0,54495.0,0.003]
[1725823520499,1.05736701,54496.0,54495.0,0.005]
[1725823521732,1.05636701,54496.0,54495.0,0.005]
[1725823522136,1.027596,54496.0,54495.0,0.005]
[1725823522353,1.027596,54496.0,54495.0,0.00663]
[1725823522552,1.028596,54496.0,54495.0,0.00663]
[1725823523417,1.028596,54496.0,54495.0,0.06733]
[1725823523607,0.734997,54496.0,54495.0,0.06733]
[1725823524095,0.441398,54496.0,54495.0,0.160523]
[1725823524347,0.441398,54496.0,54495.0,0.14593]
[1725823524567,0.001,54496.0,54495.0,0.16497496]
[1725823524972,0.147799,54496.0,54495.0,0.16497496]
[1725823525180,0.001,54496.0,54495.0,0.20498022]
[1725823525410,0.146796,54498.0,54497.0,0.1443]
[1725823525635,0.02877044,54500.0,54499.0,0.1433]
[1725823526113,0.000815,54505.0,54503.0,0.15078]
[1725823526336,0.000815,54505.0,54503.0,0.67457518]
[1725823526558,0.000815,54505.0,54503.0,0.79228757]
[1725823526768,0.000815,54505.0,54503.0,0.40946096]
[1725823526975,0.000815,54505.0,54503.0,0.49772657]
[1725823527483,0.000815,54505.0,54503.0,0.79128757]
[1725823527701,0.000815,54505.0,54503.0,1.08484857]
[1725823528155,0.000815,54505.0,54503.0,0.79128757]
[1725823528367,0.001815,54504.0,54503.0,0.87129267]
[1725823528595,0.000815,54504.0,54503.0,0.86829267]
[1725823529024,0.001815,54504.0,54503.0,0.87229267]
[1725823529229,0.000815,54504.0,54503.0,0.86829267]
[1725823529731,0.001815,54504.0,54503.0,0.87229267]
[1725823530983,0.000815,54504.0,54503.0,0.86829267]
[1725823531424,0.001815,54504.0,54503.0,0.87229267]
[1725823531857,0.001815,54504.0,54503.0,0.8643931]
[1725823532309,0.000815,54504.0,54503.0,0.8603931]
[1725823532502,0.001815,54504.0,54503.0,0.8643931]
[1725823534412,0.001815,54504.0,54503.0,0.8623931]
[1725823535129,0.001815,54504.0,54503.0,0.8643931]
[1725823535352,0.000815,54504.0,54503.0,0.8603931]
[1725823535609,0.001815,54504.0,54503.0,0.8643931]
[1725823535880,0.000815,54504.0,54503.0,0.8603931]
[1725823536344,0.000815,54504.0,54503.0,0.8643931]
[1725823536345,0.001815,54504.0,54503.0,0.8643931]
[1725823536576,0.02876177,54513.0,54512.0,0.002]
[1725823536807,0.46902177,54513.0,54512.0,0.1487]
[1725823537301,0.46902177,54513.0,54512.0,0.15976763]
[1725823537741,0.46902177,54513.0,54512.0,0.17574439]
[1725823538631,0.46902177,54513.0,54512.0,0.17874439]
[1725823539095,1.11873577,54513.0,54512.0,0.01406763]
[1725823539335,1.57751348,54513.0,54512.0,0.01406763]
[1725823539589,1.51224277,54513.0,54512.0,0.003]
[1725823539818,1.21873577,54513.0,54512.0,0.003]
[1725823540032,1.027334,54510.0,54509.0,0.002]
[1725823542491,1.029334,54510.0,54509.0,0.002]
[1725823543165,1.029334,54510.0,54509.0,0.012]
[1725823545003,1.029334,54510.0,54509.0,0.014]
[1725823547150,1.029334,54510.0,54509.0,0.012]
[1725823548494,1.030149,54510.0,54509.0,0.012]
[1725823549866,1.106049,54510.0,54509.0,0.012]
[1725823550743,1.106049,54510.0,54509.0,0.01]
[1725823550980,1.26088618,54510.0,54509.0,0.01]
[1725823551210,1.32363528,54510.0,54509.0,0.01]
[1725823551652,1.268749,54510.0,54509.0,0.01]
[1725823556920,1.192849,54510.0,54509.0,0.01]
[1725823557574,1.24771363,54510.0,54509.0,0.01]
[1725823559524,1.192849,54510.0,54509.0,0.01]
[1725823560399,1.192849,54510.0,54509.0,0.011628]
[1725823561358,1.27517842,54510.0,54509.0,0.011628]
[1725823562704,1.3039438,54510.0,54509.0,0.011628]
[1725823563346,1.22161438,54510.0,54509.0,0.011628]
[1725823564241,1.34677006,54510.0,54509.0,0.011628]
[1725823564703,1.45654263,54510.0,54509.0,0.011628]
[1725823564932,1.45657456,54510.0,54509.0,0.011628]
[1725823566102,1.39387456,54510.0,54509.0,0.011628]
[1725823566539,1.28406048,54510.0,54509.0,0.011628]
[1725823568122,1.42132808,54510.0,54509.0,0.011628]
[1725823569656,1.28406048,54510.0,54509.0,0.011628]
[1725823570103,1.28534061,54510.0,54509.0,0.011628]
[1725823582873,1.28534061,54510.0,54509.0,0.0867108]
[1725823583141,1.28534061,54510.0,54509.0,0.077328]
[1725823585043,1.15691438,54510.0,54509.0,0.077328]
[1725823585256,1.28494884,54510.0,54509.0,0.077328]
[1725823585490,1.28594884,54510.0,54509.0,0.077328]
[1725823585714,1.28494884,54510.0,54509.0,0.077328]
[1725823586162,1.28494884,54510.0,54509.0,0.079328]
[1725823586343,1.28494884,54510.0,54509.0,0.077328]
[1725823586573,1.28494884,54510.0,54509.0,0.078328]
[1725823587688,1.25618346,54510.0,54509.0,0.078328]
[1725823588568,0.12884946,54510.0,54509.0,0.159128]
[1725823588764,0.000815,54510.0,54509.0,0.158128]
[1725823588984,0.002815,54510.0,54509.0,0.61317849]
[1725823589186,0.002815,54510.0,54509.0,0.90103894]
[1725823589398,0.002815,54510.0,54509.0,1.03231393]
[1725823589600,0.004815,54510.0,54509.0,1.03231393]
[1725823589945,0.000815,54510.0,54509.0,1.03231393]
[1725823590816,0.000815,54510.0,54509.0,1.03631393]
[1725823590817,0.001815,54510.0,54509.0,1.03631393]
[1725823591968,0.000815,54510.0,54509.0,1.03231393]
[1725823593351,0.001815,54510.0,54509.0,1.03831393]
[1725823593590,0.000815,54510.0,54509.0,1.03231393]
[1725823594008,0.001815,54510.0,54509.0,0.74478493]
[1725823595178,0.000815,54510.0,54509.0,0.73878493]
[1725823595656,0.001815,54510.0,54509.0,0.61450994]
[1725823595912,0.000815,54510.0,54509.0,0.60950994]
[1725823596187,0.001815,54510.0,54509.0,0.61450994]
[1725823596640,0.000815,54510.0,54509.0,0.60950994]
[1725823596854,0.001815,54510.0,54509.0,0.61450994]
[1725823597090,0.000815,54510.0,54509.0,0.60950994]
[1725823598469,0.001815,54510.0,54509.0,0.17421694]
[1725823598848,0.001815,54510.0,54509.0,0.16921694]
[1725823599075,0.001815,54510.0,54509.0,0.17421694]
[1725823599076,0.002815,54510.0,54509.0,0.17421694]
[1725823599290,0.000815,54510.0,54509.0,0.16921694]
[1725823599525,0.441101,54510.0,54509.0,0.16921694]
[1725823599781,0.442101,54510.0,54509.0,0.17421694]
[1725823600017,0.442101,54510.0,54509.0,0.16921694]
[1725823600243,0.443101,54510.0,54509.0,0.17421694]
[1725823601342,0.736625,54510.0,54509.0,0.17421694]
[1725823601595,0.734625,54510.0,54509.0,0.16921694]
[1725823601845,0.734625,54510.0,54509.0,0.10648842]
[1725823601846,1.029149,54510.0,54509.0,0.10648842]
[1725823602070,1.029149,54510.0,54509.0,0.095428]
[1725823602579,1.028149,54510.0,54509.0,0.092428]
[1725823604404,0.734625,54510.0,54509.0,0.092428]
[1725823604636,0.734625,54510.0,54509.0,0.015628]
[1725823606058,0.734625,54510.0,54509.0,0.013628]
[1725823606511,1.028149,54510.0,54509.0,0.015628]
[1725823606741,1.028149,54510.0,54509.0,0.016628]
[1725823613689,1.030149,54510.0,54509.0,0.016628]
[1725823617748,1.030149,54510.0,54509.0,0.014628]
[1725823621598,1.030149,54510.0,54509.0,0.016628]
[1725823623387,1.030149,54510.0,54509.0,0.0328308]
[1725823623859,1.030149,54510.0,54509.0,0.0308308]
[1725823624082,1.030149,54510.0,54509.0,0.0328308]
[1725823624783,0.736625,54510.0,54509.0,0.162828]
[1725823625312,0.736625,54510.0,54509.0,0.17379753]
[1725823625753,0.74539609,54510.0,54509.0,0.17379753]
[1725823625983,1.42185964,54510.0,54509.0,0.02359753]
[1725823626220,2.05723701,54510.0,54509.0,0.02359753]
[1725823626448,2.05723701,54510.0,54509.0,0.012628]
[1725823626711,2.08600307,54510.0,54509.0,0.012628]
[1725823627183,2.54440903,54510.0,54509.0,0.011628]
[1725823627401,1.92633859,54510.0,54509.0,0.011628]
[1725823627617,1.91933859,54510.0,54509.0,0.011628]
[1725823628078,1.95715015,54510.0,54509.0,0.011628]
[1725823628293,1.94548805,54510.0,54509.0,0.011628]
[1725823628508,1.95148805,54510.0,54509.0,0.011628]
[1725823629061,1.94548805,54510.0,54509.0,0.011628]
[1725823629293,1.95948805,54510.0,54509.0,0.011628]
[1725823629729,1.97348805,54510.0,54509.0,0.011628]
[1725823629944,1.95948805,54510.0,54509.0,0.011628]
[1725823630638,1.94630305,54510.0,54509.0,0.011628]
[1725823630856,1.96030305,54510.0,54509.0,0.011628]
[1725823631087,1.90402443,54510.0,54509.0,0.011628]
[1725823631316,1.91802443,54510.0,54509.0,0.011628]
[1725823631791,1.90402443,54510.0,54509.0,0.011628]
[1725823632228,1.91802443,54510.0,54509.0,0.011628]
[1725823632873,1.90402443,54510.0,54509.0,0.011628]
[1725823633108,1.91802443,54510.0,54509.0,0.011628]
[1725823633320,1.90402443,54510.0,54509.0,0.011628]
[1725823633548,1.91802443,54510.0,54509.0,0.011628]
[1725823633757,1.91802443,54510.0,54503.0,0.00163]
[1725823633758,1.321002,54504.0,54503.0,0.00163]
[1725823633971,1.93213572,54504.0,54503.0,0.00163]
[1725823634434,1.96087351,54504.0,54503.0,0.00163]
[1725823634877,1.97087351,54504.0,54503.0,0.00163]
[1725823635096,1.96087351,54504.0,54503.0,0.00163]
[1725823635326,2.03605309,54504.0,54503.0,0.00163]
[1725823635571,2.04905309,54504.0,54503.0,0.00163]
[1725823635794,2.07645733,54504.0,54503.0,0.00163]
[1725823636010,2.06345733,54504.0,54503.0,0.00163]
[1725823636228,1.92644149,54504.0,54503.0,0.00163]
[1725823636734,1.94044149,54504.0,54503.0,0.00163]
[1725823637168,1.96677087,54504.0,54503.0,0.00163]
[1725823637613,1.89157087,54504.0,54503.0,0.00163]
[1725823637851,1.97815961,54504.0,54503.0,0.00163]
[1725823638305,1.89257087,54504.0,54503.0,0.00163]
[1725823638526,2.00215345,54504.0,54503.0,0.00163]
[1725823638790,1.99015345,54504.0,54503.0,0.00163]
[1725823639007,2.00415345,54504.0,54503.0,0.00163]
[1725823639848,2.0307415,54504.0,54503.0,0.00163]
[1725823640064,1.9686415,54504.0,54503.0,0.00163]
[1725823640490,2.15362457,54504.0,54503.0,0.00163]
[1725823640921,2.13962457,54504.0,54503.0,0.00163]
[1725823641769,2.14862457,54504.0,54503.0,0.00163]
[1725823643029,2.14761732,54504.0,54503.0,0.00163]
[1725823643865,2.17501476,54504.0,54503.0,0.00163]
[1725823644143,2.16601476,54504.0,54503.0,0.00163]
[1725823644280,2.17801476,54504.0,54503.0,0.00163]
[1725823644712,2.16601476,54504.0,54503.0,0.00163]
[1725823644920,2.18001476,54504.0,54503.0,0.00163]
[1725823645132,2.16801476,54504.0,54503.0,0.00163]
[1725823645366,2.17701476,54504.0,54503.0,0.00163]
[1725823645609,2.16801476,54504.0,54503.0,0.00163]
[1725823646063,2.18001476,54504.0,54503.0,0.00163]
[1725823646879,2.04302755,54504.0,54503.0,0.00163]
[1725823647060,1.83032477,54504.0,54503.0,0.00163]
[1725823647261,1.7361166,54504.0,54503.0,0.00163]
[1725823647802,1.95809713,54504.0,54503.0,0.00163]
[1725823648027,1.96009713,54504.0,54503.0,0.00163]
[1725823648230,1.89191337,54504.0,54503.0,0.00163]
[1725823648670,1.86991337,54504.0,54503.0,0.00163]
[1725823648872,1.88091337,54504.0,54503.0,0.00163]
[1725823649074,1.88391337,54504.0,54503.0,0.00163]
[1725823649490,1.86991337,54504.0,54503.0,0.00163]
[1725823650251,2.05489644,54504.0,54503.0,0.00163]
[1725823650574,2.06689644,54504.0,54503.0,0.00163]
[1725823650707,2.07989644,54504.0,54503.0,0.00163]
[1725823651070,2.06789644,54504.0,54503.0,0.00163]
[1725823651276,2.07889644,54504.0,54503.0,0.00163]
[1725823652092,1.89391337,54504.0,54503.0,0.00163]
[1725823652307,1.88091337,54504.0,54503.0,0.00163]
[1725823652503,1.78530247,54504.0,54503.0,0.00163]
[1725823652850,1.65893284,54504.0,54503.0,0.00163]
[1725823653824,1.72716012,54504.0,54503.0,0.00163]
[1725823654039,1.74016012,54504.0,54503.0,0.00163]